Workbook

Sheet Data
B2: Alabama Department of Transportation
B3: BMT-188
B4: Record Log to Develop the Strength-Maturity Relationship
I5: Version 2.0 - 3/12/2013
B7: GENERAL INFORMATION
C8: Project Number: | D8: To be completed
C9: Contractor Name: | D9: To be completed
C10: Concrete Producer: | D10: To be completed | G10: Vendor Number: | H10: 34
C11: Sensor/Meter ID No.: | D11: 13383 A
C12: Maturity Sensor Location: | D12: Mid-depth of 6 x 12 in. Cylinder
C13: Concrete Class & Type: | D13: Type A-1c | G13: Mixture Number: | H13: 17
C14: Batch Date: | D14: 2003-06-12 | G14: Batch Time: | H14: 08:21:00
C15: Batch Size (cu.yd): | D15: 4
C16: Temperature at Casting: | D16: Ambient (°F): | E16: 70 | G16: Concrete (°F): | H16: 81
C17: Test Results at Casting: | D17: Slump (in.): | E17: 2.5 | G17: Total Air (%): | H17: 4.6
B20: STRENGTH AND MATURITY DATA
B21: Set | C21: Date | D21: Time (HR:MIN) | E21: Actual Age (Days) | F21: STRENGTH | I21: MATURITY
F22: Specimen No. | G22: Compressive Strength (psi) | H22: Strength Difference (%) | I22: Sensor No. | J22: Maturity (ºC·hr)
B23: 1 | C23: 2003-06-13 | D23: 08:21:00 | E23: =((C23+D23)-(D$14+H$14)) -> 1 | F23: 1 | G23: 2260 | H23: =IF(G23="","",IF(G24="",+(G23-G25)/AVERAGE(G23,G25)*100,IF(G25="",+(G23-G24)/AVERAGE(G23,G24)*100,+(G23-AVERAGE(G24,G25))/AVERAGE(G24,G25)*100))) -> -0.2207505519 | I23: 1 | J23: 720
F24: 2 | G24: 2210 | H24: =IF(G24="","",IF(G23="",+(G24-G25)/AVERAGE(G24,G25)*100,IF(G25="",+(G24-G23)/AVERAGE(G24,G23)*100,+(G24-AVERAGE(G23,G25))/AVERAGE(G23,G25)*100))) -> -3.493449782 | I24: 2 | J24: 730
F25: 3 | G25: 2320 | H25: =IF(G25="","",IF(G24="",+(G25-G23)/AVERAGE(G25,G23)*100,IF(G23="",+(G25-G24)/AVERAGE(G25,G24)*100,+(G25-AVERAGE(G24,G23))/AVERAGE(G24,G23)*100))) -> 3.803131991
F26: Average | G26: =IF(ISERROR(AVERAGE(G23:G25)),"",ROUND(AVERAGE(G23:G25),-1)) -> 2260 | I26: Average | J26: =IF(ISERROR(AVERAGE(J23:J24)),"",AVERAGE(J23:J24)) -> 725
B27: 2 | C27: 2003-06-14 | D27: 08:15:00 | E27: =((C27+D27)-(D$14+H$14)) -> 1.995833333 | F27: 1 | G27: 3100 | H27: =IF(G27="","",IF(G28="",+(G27-G29)/AVERAGE(G27,G29)*100,IF(G29="",+(G27-G28)/AVERAGE(G27,G28)*100,+(G27-AVERAGE(G28,G29))/AVERAGE(G28,G29)*100))) -> -4.615384615 | I27: 1 | J27: 1481
F28: 2 | G28: 3200 | H28: =IF(G28="","",IF(G27="",+(G28-G29)/AVERAGE(G28,G29)*100,IF(G29="",+(G28-G27)/AVERAGE(G28,G27)*100,+(G28-AVERAGE(G27,G29))/AVERAGE(G27,G29)*100))) -> 0 | I28: 2 | J28: 1509
F29: 3 | G29: 3300 | H29: =IF(G29="","",IF(G28="",+(G29-G27)/AVERAGE(G29,G27)*100,IF(G27="",+(G29-G28)/AVERAGE(G29,G28)*100,+(G29-AVERAGE(G28,G27))/AVERAGE(G28,G27)*100))) -> 4.761904762
F30: Average | G30: =IF(ISERROR(AVERAGE(G27:G29)),"",ROUND(AVERAGE(G27:G29),-1)) -> 3200 | I30: Average | J30: =IF(ISERROR(AVERAGE(J27:J28)),"",AVERAGE(J27:J28)) -> 1495
B31: 3 | C31: 2003-06-16 | D31: 10:00:00 | E31: =((C31+D31)-(D$14+H$14)) -> 4.06875 | F31: 1 | G31: 3840 | H31: =IF(G31="","",IF(G32="",+(G31-G33)/AVERAGE(G31,G33)*100,IF(G33="",+(G31-G32)/AVERAGE(G31,G32)*100,+(G31-AVERAGE(G32,G33))/AVERAGE(G32,G33)*100))) -> 2.673796791 | I31: 1 | J31: 2852
F32: 2 | G32: 3780 | H32: =IF(G32="","",IF(G31="",+(G32-G33)/AVERAGE(G32,G33)*100,IF(G33="",+(G32-G31)/AVERAGE(G32,G31)*100,+(G32-AVERAGE(G31,G33))/AVERAGE(G31,G33)*100))) -> 0.2652519894 | I32: 2 | J32: 2868
F33: 3 | G33: 3700 | H33: =IF(G33="","",IF(G32="",+(G33-G31)/AVERAGE(G33,G31)*100,IF(G31="",+(G33-G32)/AVERAGE(G33,G32)*100,+(G33-AVERAGE(G32,G31))/AVERAGE(G32,G31)*100))) -> -2.887139108
F34: Average | G34: =IF(ISERROR(AVERAGE(G31:G33)),"",ROUND(AVERAGE(G31:G33),-1)) -> 3770 | I34: Average | J34: =IF(ISERROR(AVERAGE(J31:J32)),"",AVERAGE(J31:J32)) -> 2860
B35: 4 | C35: 2003-06-19 | D35: 08:50:00 | E35: =((C35+D35)-(D$14+H$14)) -> 7.020138889 | F35: 1 | G35: 4380 | H35: =IF(G35="","",IF(G36="",+(G35-G37)/AVERAGE(G35,G37)*100,IF(G37="",+(G35-G36)/AVERAGE(G35,G36)*100,+(G35-AVERAGE(G36,G37))/AVERAGE(G36,G37)*100))) -> 1.154734411 | I35: 1 | J35: 4760
F36: 2 | G36: 4060 | H36: =IF(G36="","",IF(G35="",+(G36-G37)/AVERAGE(G36,G37)*100,IF(G37="",+(G36-G35)/AVERAGE(G36,G35)*100,+(G36-AVERAGE(G35,G37))/AVERAGE(G35,G37)*100))) -> -9.576837416 | I36: 2 | J36: 4768
F37: 3 | G37: 4600 | H37: =IF(G37="","",IF(G36="",+(G37-G35)/AVERAGE(G37,G35)*100,IF(G35="",+(G37-G36)/AVERAGE(G37,G36)*100,+(G37-AVERAGE(G36,G35))/AVERAGE(G36,G35)*100))) -> 9.004739336
F38: Average | G38: =IF(ISERROR(AVERAGE(G35:G37)),"",ROUND(AVERAGE(G35:G37),-1)) -> 4350 | I38: Average | J38: =IF(ISERROR(AVERAGE(J35:J36)),"",AVERAGE(J35:J36)) -> 4764
B39: 5 | C39: 2003-07-11 | D39: 13:37:00 | E39: =((C39+D39)-(D$14+H$14)) -> 29.21944444 | F39: 1 | G39: 5310 | H39: =IF(G39="","",IF(G40="",+(G39-G41)/AVERAGE(G39,G41)*100,IF(G41="",+(G39-G40)/AVERAGE(G39,G40)*100,+(G39-AVERAGE(G40,G41))/AVERAGE(G40,G41)*100))) -> 3.812316716 | I39: 1 | J39: 18500
F40: 2 | G40: 5000 | H40: =IF(G40="","",IF(G39="",+(G40-G41)/AVERAGE(G40,G41)*100,IF(G41="",+(G40-G39)/AVERAGE(G40,G39)*100,+(G40-AVERAGE(G39,G41))/AVERAGE(G39,G41)*100))) -> -5.123339658 | I40: 2 | J40: 18600
F41: 3 | G41: 5230 | H41: =IF(G41="","",IF(G40="",+(G41-G39)/AVERAGE(G41,G39)*100,IF(G39="",+(G41-G40)/AVERAGE(G41,G40)*100,+(G41-AVERAGE(G40,G39))/AVERAGE(G40,G39)*100))) -> 1.454898157
F42: Average | G42: =IF(ISERROR(AVERAGE(G39:G41)),"",ROUND(AVERAGE(G39:G41),-1)) -> 5180 | I42: Average | J42: =IF(ISERROR(AVERAGE(J39:J40)),"",AVERAGE(J39:J40)) -> 18550
B43: 6 | E43: =IF(C43="","",((C43+D43)-(D$14+H$14))) ->  | F43: 1 | H43: =IF(G43="","",IF(G44="",+(G43-G45)/AVERAGE(G43,G45)*100,IF(G45="",+(G43-G44)/AVERAGE(G43,G44)*100,+(G43-AVERAGE(G44,G45))/AVERAGE(G44,G45)*100))) ->  | I43: 1
F44: 2 | H44: =IF(G44="","",IF(G43="",+(G44-G45)/AVERAGE(G44,G45)*100,IF(G45="",+(G44-G43)/AVERAGE(G44,G43)*100,+(G44-AVERAGE(G43,G45))/AVERAGE(G43,G45)*100))) ->  | I44: 2
F45: 3 | H45: =IF(G45="","",IF(G44="",+(G45-G43)/AVERAGE(G45,G43)*100,IF(G43="",+(G45-G44)/AVERAGE(G45,G44)*100,+(G45-AVERAGE(G44,G43))/AVERAGE(G44,G43)*100))) -> 
F46: Average | G46: =IF(ISERROR(AVERAGE(G43:G45)),"",ROUND(AVERAGE(G43:G45),-1)) ->  | J46: =IF(ISERROR(AVERAGE(J43:J44)),"",AVERAGE(J43:J44)) -> 
B47: Note : | C47: Clear all date, time, strength, and maturity cells in Set 6 for non-prestressed applications.
B49: CALCULATIONS TO DETERMINE THE BEST-FIT STRENGTH-MATURITY RELATIONSHIP
G51: Ultimate Compressive Strength, Su = | H51: =+ROUND(Calculations!F19,1) -> 6112.6 | I51: psi
G52: 0.95 x Su = | H52: =+Calculations!F20 -> 5806.97676 | I52: psi
G53: Time Constant, A = | H53: =+Calculations!F21 -> 710.6765378 | I53: ºC·hr
G54: Slope Constant, B = | H54: =+Calculations!F22 -> 0.5523465607
G55: Coefficient of determination (r2) = | H55: =+Calculations!F23 -> 0.9979453519
B59: INSTRUCTIONS
B61: ● The user should define and update all values in yellow cells.
B62: ● Click on the "Perform Analysis" box and "Keep Solver Solution" to determine the best-fit strength-maturity relationship.
B63: ● Use the "Delete" key to clear the data from a cell. Do not use a zero to indicate no value.
B64: ● This spreadsheet uses marcos to determine the best-fit parameters for the strength-maturity relationship. The user must allow
B65: macros to run in this Excel spreadsheet. In Excel 2010 select "File", "Options", "Trust Center", "Trust Center Settings",
B66: "Macro Settings", and then select "Disable all macros with notification". This will allow the user to choose when to enable
B67: macros on a case-by-case basis.
B68: ● This spreadsheet uses the "Solver Add-In" feature of MicroSoft Excel. This feature is not available when Microsoft Excel is
B69: installed for the first time and must be loaded for use. In Excel 2010, this Add-In can be loaded by selecting "File", "Options",
B70: "Add-Ins", and then under "Inactive Add-in Applications" select "Solver Add-in" and click "OK". This feature should now be
B71: available for this user's computer.

Sheet Calculations
B1: CALCULATIONS TO DETERMINE THE BEST-FIT STRENGTH-MATURITY RELATIONSHIP: | K1: Calculations to Plot Continuous S-M Curves
L2: Best-Fit | M2: Adjusted
B5: ACTUAL CONCRETE AGE | C5: AVERAGE MATURITY | D5: MEASURED STRENGTH, Sm | E5: ESTIMATED STRENGTH, Sest | F5: (Sm-Sest)2 | G5: (Sm-Sm.avg)2 | K5: MATURITY | L5: BEST-FIT S-M CURVE | M5: ADJUSTED S-M CURVE | P5: AVERAGE MATURITY | Q5: MEASURED STRENGTH, Sm
B6: (Days) | C6: (ºC·Hr) | D6: (psi) | E6: (psi) | K6: (ºC·Hr) | L6: (psi) | M6: (psi) | P6: (ºC·Hr) | Q6: (psi)
B7: =+Data!E23 -> 1 | C7: =IF(Data!J26="","",Data!J26) -> 725 | D7: =IF(Data!G26="","",Data!G26) -> 2260 | E7: =+$F$19*EXP(-(($F$21/C7)^$F$22)) -> 2273.48645 | F7: =+(E7-D7)^2 -> 181.8843273 | G7: =+(D7-$D$13)^2 -> 2226064 | K7: 1 | L7: =+$F$19*EXP(-(($F$21/K7)^$F$22)) -> 2.881610074e-13 | M7: =+$F$19*0.95*EXP(-(($F$21/K7)^$F$22)) -> 2.73752957e-13 | P7: =+C7 -> 725 | Q7: 2260
B8: =+Data!E27 -> 1.995833333 | C8: =IF(Data!J30="","",Data!J30) -> 1495 | D8: =IF(Data!G30="","",Data!G30) -> 3200 | E8: =+$F$19*EXP(-(($F$21/C8)^$F$22)) -> 3149.386006 | F8: =+(E8-D8)^2 -> 2561.776371 | G8: =+(D8-$D$13)^2 -> 304704 | K8: 5 | L8: =+$F$19*EXP(-(($F$21/K8)^$F$22)) -> 0.001187658939 | M8: =+$F$19*0.95*EXP(-(($F$21/K8)^$F$22)) -> 0.001128275992 | P8: 1495 | Q8: 3200
B9: =+Data!E31 -> 4.06875 | C9: =IF(Data!J34="","",Data!J34) -> 2860 | D9: =IF(Data!G34="","",Data!G34) -> 3770 | E9: =+$F$19*EXP(-(($F$21/C9)^$F$22)) -> 3845.513663 | F9: =+(E9-D9)^2 -> 5702.31326 | G9: =+(D9-$D$13)^2 -> 324 | K9: =+K8+5 -> 10 | L9: 0.1620179814 | M9: 0.1539170823 | P9: 2860 | Q9: 3770
B10: =+Data!E35 -> 7.020138889 | C10: =+Data!J38 -> 4764 | D10: =+Data!G38 -> 4350 | E10: =+$F$19*EXP(-(($F$21/C10)^$F$22)) -> 4309.118958 | F10: =+(E10-D10)^2 -> 1671.259616 | G10: =+(D10-$D$13)^2 -> 357604 | K10: 15 | L10: 1.34237516 | M10: 1.275256402 | P10: 4764 | Q10: 4350
B11: =+Data!E39 -> 29.21944444 | C11: =+Data!J42 -> 18550 | D11: =+Data!G42 -> 5180 | E11: =+$F$19*EXP(-(($F$21/C11)^$F$22)) -> 5182.797405 | F11: =+(E11-D11)^2 -> 7.825475912 | G11: =+(D11-$D$13)^2 -> 2039184 | K11: 20 | L11: 4.627576626 | M11: 4.396197794 | P11: 18550 | Q11: 5180
B12: =+IF(Data!E43="","",Data!E43) ->  | C12: =+IF(Data!J46="","",Data!J46) ->  | D12: =+IF(Data!G46="","",Data!G46) ->  | E12: =IF(B12="","",+$F$19*EXP(-(($F$21/C12)^$F$22))) ->  | F12: =IF(B12="","",(E12-D12)^2) ->  | G12: =IF(B12="","",(D12-$D$13)^2) ->  | K12: 25 | L12: 10.64753178 | M12: 10.11515519 | P12: =+IF(Data!J46="",-1000000,Data!J46) -> -1000000 | Q12: =+IF(Data!G46="",-1000000,Data!G46) -> -1000000
C13: Sm.avg = | D13: =AVERAGE(D7:D12) -> 3752 | E13: S= | F13: =SUM(F7:F12) -> 10125.05905 | G13: =SUM(G7:G12) -> 4927880 | K13: 30 | L13: 19.56856347 | M13: 18.59013529
K14: 35 | L14: 31.27339347 | M14: 29.70972379
K15: 40 | L15: 45.50632708 | M15: 43.23101073
K16: 45 | L16: 61.96061705 | M16: 58.86258619
B17: DEFINITION OF THE BEST-FIT STRENGTH-MATURITY RELATIONSHIP | K17: 50 | L17: 80.32520804 | M17: 76.30894764
K18: =+K17+10 -> 60 | L18: 121.64311 | M18: 115.5609545
E19: Ultimate Compressive Strength, Su = | F19: 6112.607116 | G19: psi | K19: =+K18+10 -> 70 | L19: 167.4693612 | M19: 159.0958932
E20: 0.95 x Su = | F20: =+F19*0.95 -> 5806.97676 | G20: psi | K20: =+K19+10 -> 80 | L20: 216.2799789 | M20: 205.4659799
E21: Time Constant, A = | F21: 710.6765378 | G21: hr·ºC | K21: =+K20+10 -> 90 | L21: 266.9452766 | M21: 253.5980127
E22: Slope Constant, B = | F22: 0.5523465607 | K22: =+K21+10 -> 100 | L22: 318.6384214 | M22: 302.7065004
E23: Coefficient of determination (r2) = | F23: =1-F13/G13 -> 0.9979453519 | K23: =+K22+25 -> 125 | L23: 448.8136572 | M23: 426.3729743
K24: =+K23+25 -> 150 | L24: 576.3928862 | M24: 547.5732419
K25: =+K24+25 -> 175 | L25: 698.9097495 | M25: 663.964262
K26: =+K25+50 -> 225 | L26: 925.7367075 | M26: 879.4498721
K27: =K26+50 -> 275 | L27: 1128.477051 | M27: 1072.053198
K28: =+K26+50 -> 275 | L28: 1128.477051 | M28: 1072.053198
K29: 325 | L29: 1309.6824 | M29: 1244.19828
K30: =K29+50 -> 375 | L30: 1472.357876 | M30: 1398.739983
K31: =K30+50 -> 425 | L31: 1619.230545 | M31: 1538.269018
K32: 475 | L32: 1752.608539 | M32: 1664.978112
K33: 525 | L33: 1874.403575 | M33: 1780.683396
K34: 575 | L34: 1986.191853 | M34: 1886.88226
K35: 625 | L35: 2089.276144 | M35: 1984.812337
K36: 675 | L36: 2184.739098 | M36: 2075.502143
K37: 675 | L37: 2184.739098 | M37: 2075.502143
K38: 725 | L38: 2273.48645 | M38: 2159.812127
K39: 725 | L39: 2273.48645 | M39: 2159.812127
K40: 775 | L40: 2356.281263 | M40: 2238.4672
K41: 775 | L41: 2356.281263 | M41: 2238.4672
K42: 825 | L42: 2433.770907 | M42: 2312.082362
K43: 825 | L43: 2433.770907 | M43: 2312.082362
K44: 875 | L44: 2506.508308 | M44: 2381.182892
K45: 875 | L45: 2506.508308 | M45: 2381.182892
K46: 925 | L46: 2574.968755 | M46: 2446.220317
K47: 925 | L47: 2574.968755 | M47: 2446.220317
K48: 975 | L48: 2639.563275 | M48: 2507.585111
K49: 975 | L49: 2639.563275 | M49: 2507.585111
K50: 1025 | L50: 2700.649331 | M50: 2565.616865
K51: 1025 | L51: 2700.649331 | M51: 2565.616865
K52: 1075 | L52: 2758.539459 | M52: 2620.612486
K53: 1075 | L53: 2758.539459 | M53: 2620.612486
K54: 1125 | L54: 2813.508266 | M54: 2672.832853
K55: 1125 | L55: 2813.508266 | M55: 2672.832853
K56: 1175 | L56: 2865.798152 | M56: 2722.508245
K57: 1175 | L57: 2865.798152 | M57: 2722.508245
K58: 1225 | L58: 2915.624022 | M58: 2769.842821
K59: 1225 | L59: 2915.624022 | M59: 2769.842821
K60: 1275 | L60: 2963.177173 | M60: 2815.018315
K61: 1275 | L61: 2963.177173 | M61: 2815.018315
K62: 1325 | L62: 3008.628544 | M62: 2858.197116
K63: 1325 | L63: 3008.628544 | M63: 2858.197116
K64: 1375 | L64: 3052.131423 | M64: 2899.524852
K65: 1375 | L65: 3052.131423 | M65: 2899.524852
K66: 1425 | L66: 3093.82374 | M66: 2939.132553
K67: 1425 | L67: 3093.82374 | M67: 2939.132553
K68: 1475 | L68: 3133.829992 | M68: 2977.138493
K69: 1475 | L69: 3133.829992 | M69: 2977.138493
K70: 1525 | L70: 3172.262895 | M70: 3013.649751
K71: 1525 | L71: 3172.262895 | M71: 3013.649751
K72: 1575 | L72: =+$F$19*EXP(-(($F$21/K72)^$F$22)) -> 3209.224782 | M72: =+$F$19*0.95*EXP(-(($F$21/K72)^$F$22)) -> 3048.763543
K73: 1575 | L73: 3209.224782 | M73: 3048.763543
K74: 1625 | L74: 3244.808808 | M74: 3082.568367
K75: 1625 | L75: 3244.808808 | M75: 3082.568367
K76: 1675 | L76: 3279.09999 | M76: 3115.144991
K77: 1675 | L77: 3279.09999 | M77: 3115.144991
K78: 1725 | L78: 3312.176105 | M78: 3146.5673
K79: 1725 | L79: 3312.176105 | M79: 3146.5673
K80: 1775 | L80: 3344.108463 | M80: 3176.90304
K81: =+K79+50 -> 1775 | L81: 3344.108463 | M81: 3176.90304
K82: 1825 | L82: 3374.962593 | M82: 3206.214463
K83: 1825 | L83: 3374.962593 | M83: 3206.214463
K84: 1875 | L84: 3404.798831 | M84: 3234.558889
K85: 1875 | L85: 3404.798831 | M85: 3234.558889
K86: 1925 | L86: 3433.672842 | M86: 3261.9892
K87: 1925 | L87: 3433.672842 | M87: 3261.9892
K88: 1975 | L88: 3461.636079 | M88: 3288.554275
K89: 1975 | L89: 3461.636079 | M89: 3288.554275
K90: 2025 | L90: 3488.736185 | M90: 3314.299376
K91: 2025 | L91: 3488.736185 | M91: 3314.299376
K92: 2075 | L92: 3515.017351 | M92: 3339.266484
K93: 2075 | L93: 3515.017351 | M93: 3339.266484
K94: 2125 | L94: 3540.520633 | M94: 3363.494601
K95: 2125 | L95: 3540.520633 | M95: 3363.494601
K96: 2175 | L96: 3565.284233 | M96: 3387.020022
K97: 2175 | L97: 3565.284233 | M97: 3387.020022
K98: 2225 | L98: 3589.343754 | M98: 3409.876567
K99: 2225 | L99: 3589.343754 | M99: 3409.876567
K100: 2275 | L100: 3612.732421 | M100: 3432.0958
K101: 2275 | L101: 3612.732421 | M101: 3432.0958
K102: 2325 | L102: 3635.481283 | M102: 3453.707219
K103: 2325 | L103: 3635.481283 | M103: 3453.707219
K104: 2375 | L104: 3657.619396 | M104: 3474.738426
K105: 2375 | L105: 3657.619396 | M105: 3474.738426
K106: 2425 | L106: 3679.173984 | M106: 3495.215285
K107: 2425 | L107: 3679.173984 | M107: 3495.215285
K108: 2475 | L108: 3700.170587 | M108: 3515.162058
K109: 2475 | L109: 3700.170587 | M109: 3515.162058
K110: 2525 | L110: 3720.633192 | M110: 3534.601533
K111: 2525 | L111: 3720.633192 | M111: 3534.601533
K112: 2575 | L112: 3740.584353 | M112: 3553.555135
K113: 2575 | L113: 3740.584353 | M113: 3553.555135
K114: 2625 | L114: 3760.045302 | M114: 3572.043037
K115: 2625 | L115: 3760.045302 | M115: 3572.043037
K116: 2675 | L116: 3779.036044 | M116: 3590.084242
K117: 2675 | L117: 3779.036044 | M117: 3590.084242
K118: 2725 | L118: 3797.575453 | M118: 3607.69668
K119: 2725 | L119: 3797.575453 | M119: 3607.69668
K120: 2775 | L120: 3815.681346 | M120: 3624.897279
K121: 2775 | L121: 3815.681346 | M121: 3624.897279
K122: 2825 | L122: 3833.370565 | M122: 3641.702037
K123: 2825 | L123: 3833.370565 | M123: 3641.702037
K124: 2875 | L124: 3850.659041 | M124: 3658.126089
K125: 2875 | L125: 3850.659041 | M125: 3658.126089
K126: 2925 | L126: 3867.561857 | M126: 3674.183764
K127: 2925 | L127: 3867.561857 | M127: 3674.183764
K128: 2975 | L128: 3884.093308 | M128: 3689.888643
K129: 2975 | L129: 3884.093308 | M129: 3689.888643
K130: 3025 | L130: 3900.266952 | M130: 3705.253604
K131: 3025 | L131: 3900.266952 | M131: 3705.253604
K132: 3075 | L132: 3916.095656 | M132: 3720.290874
K133: 3075 | L133: 3916.095656 | M133: 3720.290874
K134: 3125 | L134: 3931.591647 | M134: 3735.012064
K135: 3125 | L135: 3931.591647 | M135: 3735.012064
K136: 3175 | L136: =+$F$19*EXP(-(($F$21/K136)^$F$22)) -> 3946.766544 | M136: =+$F$19*0.95*EXP(-(($F$21/K136)^$F$22)) -> 3749.428217
K137: 3175 | L137: 3946.766544 | M137: 3749.428217
K138: 3225 | L138: 3961.631406 | M138: 3763.549835
K139: 3225 | L139: 3961.631406 | M139: 3763.549835
K140: 3275 | L140: 3976.196758 | M140: 3777.38692
K141: 3275 | L141: 3976.196758 | M141: 3777.38692
K142: 3325 | L142: 3990.47263 | M142: 3790.948998
K143: 3325 | L143: 3990.47263 | M143: 3790.948998
K144: 3375 | L144: 4004.468583 | M144: 3804.245154
K145: =+K143+50 -> 3375 | L145: 4004.468583 | M145: 3804.245154
K146: 3425 | L146: 4018.19374 | M146: 3817.284053
K147: 3425 | L147: 4018.19374 | M147: 3817.284053
K148: 3475 | L148: 4031.656808 | M148: 3830.073968
K149: 3475 | L149: 4031.656808 | M149: 3830.073968
K150: 3525 | L150: 4044.866105 | M150: 3842.6228
K151: 3525 | L151: 4044.866105 | M151: 3842.6228
K152: 3575 | L152: 4057.829582 | M152: 3854.938103
K153: 3575 | L153: 4057.829582 | M153: 3854.938103
K154: 3625 | L154: 4070.554841 | M154: 3867.027099
K155: 3625 | L155: 4070.554841 | M155: 3867.027099
K156: 3675 | L156: 4083.049158 | M156: 3878.8967
K157: 3675 | L157: 4083.049158 | M157: 3878.8967
K158: 3725 | L158: 4095.319499 | M158: 3890.553524
K159: 3725 | L159: 4095.319499 | M159: 3890.553524
K160: 3775 | L160: 4107.372538 | M160: 3902.003911
K161: 3775 | L161: 4107.372538 | M161: 3902.003911
K162: 3825 | L162: 4119.214671 | M162: 3913.253938
K163: 3825 | L163: 4119.214671 | M163: 3913.253938
K164: 3875 | L164: 4130.852032 | M164: 3924.309431
K165: 3875 | L165: 4130.852032 | M165: 3924.309431
K166: 3925 | L166: 4142.290507 | M166: 3935.175981
K167: 3925 | L167: 4142.290507 | M167: 3935.175981
K168: 3975 | L168: 4153.535743 | M168: 3945.858956
K169: 3975 | L169: 4153.535743 | M169: 3945.858956
K170: 4025 | L170: 4164.593169 | M170: 3956.363511
K171: 4025 | L171: 4164.593169 | M171: 3956.363511
K172: 4075 | L172: 4175.467997 | M172: 3966.694597
K173: 4075 | L173: 4175.467997 | M173: 3966.694597
K174: 4125 | L174: 4186.165239 | M174: 3976.856977
K175: 4125 | L175: 4186.165239 | M175: 3976.856977
K176: 4175 | L176: 4196.689715 | M176: 3986.855229
K177: 4175 | L177: 4196.689715 | M177: 3986.855229
K178: 4225 | L178: 4207.046063 | M178: 3996.69376
K179: 4225 | L179: 4207.046063 | M179: 3996.69376
K180: 4275 | L180: 4217.238746 | M180: 4006.376809
K181: 4275 | L181: 4217.238746 | M181: 4006.376809
K182: 4325 | L182: 4227.272065 | M182: 4015.908462
K183: 4325 | L183: 4227.272065 | M183: 4015.908462
K184: 4375 | L184: 4237.15016 | M184: 4025.292652
K185: 4375 | L185: 4237.15016 | M185: 4025.292652
K186: 4425 | L186: 4246.877022 | M186: 4034.533171
K187: 4425 | L187: 4246.877022 | M187: 4034.533171
K188: 4475 | L188: 4256.4565 | M188: 4043.633675
K189: 4475 | L189: 4256.4565 | M189: 4043.633675
K190: 4525 | L190: 4265.892305 | M190: 4052.59769
K191: 4525 | L191: 4265.892305 | M191: 4052.59769
K192: 4575 | L192: 4275.188019 | M192: 4061.428618
K193: 4575 | L193: 4275.188019 | M193: 4061.428618
K194: 4625 | L194: 4284.347098 | M194: 4070.129744
K195: 4625 | L195: 4284.347098 | M195: 4070.129744
K196: 4675 | L196: 4293.372881 | M196: 4078.704237
K197: 4675 | L197: 4293.372881 | M197: 4078.704237
K198: 4725 | L198: 4302.268592 | M198: 4087.155162
K199: 4725 | L199: 4302.268592 | M199: 4087.155162
K200: 4775 | L200: =+$F$19*EXP(-(($F$21/K200)^$F$22)) -> 4311.037345 | M200: =+$F$19*0.95*EXP(-(($F$21/K200)^$F$22)) -> 4095.485478
K201: 4775 | L201: 4311.037345 | M201: 4095.485478
K202: 4825 | L202: 4319.682153 | M202: 4103.698045
... 568 more rows
